fUST/lending_fUST_20251110
["ID","MTS","AMOUNT","RATE_DAILY","PERIOD"]
[393517721,1762749049083,-332.0,0.00022605,3]
[393517722,1762749049094,-332.0,0.00022605,3]
[393517723,1762749049104,-332.0,0.00022605,3]
[393517724,1762749049113,-332.0,0.00022605,3]
[393517725,1762749049123,-332.0,0.00022605,3]
[393517726,1762749049132,-332.0,0.00022605,3]
[393517727,1762749049141,-332.0,0.00022605,3]
[393517728,1762749049151,-332.0,0.00022605,3]
[393517729,1762749049159,-332.0,0.00022605,3]
[393517730,1762749049168,-332.0,0.00022605,3]
[393517731,1762749049177,-387.75994276,0.00022605,3]
[393517732,1762749049186,-332.0,0.00022605,3]
[393517733,1762749049195,-332.0,0.00022605,3]
[393517734,1762749049204,-332.0,0.00022605,3]
[393517735,1762749049214,-332.0,0.00022605,3]
[393517736,1762749049223,-332.0,0.00022605,3]
[393517737,1762749049232,-332.0,0.00022605,3]
[393517738,1762749049242,-173.40762635,0.00022605,3]
[393517739,1762749049251,-151.0,0.00022605,3]
[393517740,1762749049260,-151.0,0.00022605,3]
[393517741,1762749049269,-153.0,0.00022605,3]
[393517742,1762749049278,-151.0,0.00022605,3]
[393517743,1762749049288,-267.51643854,0.00022605,3]
[393517744,1762749049296,-332.0,0.00022605,3]
[393517745,1762749049306,-151.0,0.00022605,3]
[393517746,1762749049315,-151.0,0.00022605,3]
[393517747,1762749049325,-332.0,0.00022605,3]
[393517748,1762749049336,-151.0,0.00022605,3]
[393517749,1762749049348,-151.0,0.00022605,3]
[393517750,1762749049357,-332.0,0.00022605,3]
[393517751,1762749049366,-332.0,0.00022605,3]
[393517752,1762749049378,-332.0,0.00022605,3]
[393517753,1762749049387,-332.0,0.00022605,3]
[393517754,1762749049396,-332.0,0.00022605,3]
[393517755,1762749049407,-332.0,0.00022605,3]
[393517756,1762749049419,-332.0,0.00022605,3]
[393517757,1762749049428,-502.0,0.00022644,2]
[393517758,1762749049437,-168.0,0.00022691,2]
[393517759,1762749049447,-160.0,0.000227,2]
[393517760,1762749049455,-151.0,0.00022704,2]
[393517761,1762749049465,-151.0,0.00022704,2]
[393517762,1762749049475,-500.0,0.00022704,2]
[393517763,1762749049484,-151.0,0.00022704,2]
[393517764,1762749049493,-500.0,0.00022704,2]
[393517765,1762749049502,-151.0,0.00022704,2]
[393517766,1762749049511,-151.0,0.00022704,2]
[393517767,1762749049520,-151.0,0.00022704,2]
[393517768,1762749049530,-151.0,0.00022704,2]
[393517769,1762749049540,-151.0,0.00022704,2]
[393517770,1762749049549,-151.0,0.00022704,2]
[393517771,1762749049559,-529.68178353,0.00022716,2]
[393517772,1762749049568,-505.17306137,0.00022721,2]
[393517773,1762749049578,-1000.0,0.00022721,2]
[393517774,1762749049588,-991.068,0.00022741,2]
[393517775,1762749049599,-628.0,0.00022741,2]
[393517776,1762749049608,-2174.003,0.00022741,2]
[393517777,1762749049618,-413.0,0.00022741,2]
[393517778,1762749049627,-200.37337758,0.00022759,2]
[393517779,1762749049636,-299.44426875,0.00022759,2]
[393517780,1762749049645,-500.0,0.00022759,2]
[393517781,1762749049655,-203.45785863,0.00022759,2]
[393517782,1762749049664,-500.0,0.00022759,2]
[393517783,1762749049673,-151.0,0.00022759,2]
[393517784,1762749049683,-151.0,0.00022759,2]
[393517785,1762749049692,-201.83647914,0.00022759,2]
[393517786,1762749049702,-200.82451781,0.00022759,2]
[393517787,1762749049711,-203.73613308,0.00022759,2]
[393517788,1762749049721,-213.93120672,0.00022759,2]
[393517789,1762749049730,-150.74730374,0.00022782,7]
[393517790,1762749049740,-502.0,0.00022793,2]
[393517791,1762749049750,-500.0,0.00022814,2]
[393517792,1762749049759,-500.0,0.00022814,2]
[393517793,1762749049768,-151.0,0.00022814,2]
[393517794,1762749049843,-255.75966183,0.00022814,2]
[393517795,1762749049860,-1332.16,0.0002282,2]
[393517796,1762749049871,-505.81325327,0.00022821,2]
[393517797,1762749049881,-1003.87177589,0.00022821,2]
[393517798,1762749049891,-1000.0,0.00022821,2]
[393517799,1762749049901,-1000.0,0.00022821,2]
[393517800,1762749049910,-1000.0,0.00022821,2]
[393517801,1762749049919,-212.93062918,0.00022821,2]
[393517802,1762749049941,-787.06937082,0.00022821,2]
[393517803,1762749049950,-1000.0,0.00022821,2]
[393517804,1762749049960,-504.39823919,0.00022821,2]
[393517805,1762749049969,-595.29951772,0.00022821,2]
[393517806,1762749049978,-168.0,0.0002283,2]
[393517807,1762749049987,-500.0,0.00022868,2]
[393517808,1762749049997,-500.0,0.00022868,2]
[393517809,1762749050006,-208.44710035,0.00022868,2]
[393517810,1762749249384,1413.67424719,0.0001962,3]
[393517811,1762749257408,5000.0,0.0001962,3]
[393517813,1762749329572,351.64603031,0.00037033,60]
[393517815,1762749342709,500.0,0.00037033,60]
[393517816,1762749349482,217.42286339,0.00037033,60]
[393517817,1762749357802,524.73484555,0.00037033,60]
[393517818,1762749363841,496.5,0.00037033,60]
[393517820,1762749801333,490.931051,0.00013699,2]
[393517821,1762749808571,500.0,0.00037041,60]
[393517822,1762749808796,500.0,0.00037041,60]
[393517823,1762749809028,500.0,0.00037041,60]
[393517824,1762749809302,500.0,0.00037041,60]
[393517825,1762749809547,500.0,0.00037041,60]
[393517826,1762749809782,500.0,0.00037041,60]
[393517827,1762749810365,500.0,0.00037041,60]
[393517828,1762749810599,500.0,0.00037041,60]
[393517829,1762749810828,500.0,0.00037041,60]
[393517830,1762749811057,500.0,0.00037041,60]
[393517831,1762749811284,500.0,0.00037041,60]
[393517832,1762749811549,500.0,0.00037041,60]
[393517833,1762749811818,500.0,0.00037041,60]
[393517834,1762749812075,500.0,0.00037041,60]
[393517835,1762749812313,500.0,0.00037041,60]
[393517836,1762749812556,500.0,0.00037041,120]
[393517837,1762749812825,500.0,0.00037041,120]
[393517838,1762749813062,244.13989465,0.00037041,120]
[393517861,1762750232173,-436.82976781,0.00019,2]
[393517868,1762750232230,-391.24924178,0.00019,2]
[393518051,1762750238034,-464.92099041,0.00019,2]
[393518054,1762750238045,-167.24486886,0.0001921,2]
[393518056,1762750238055,-1000.0,0.0001942,2]
[393518057,1762750238064,-97.25085693,0.00020014,2]
[393518058,1762750238089,-103.68803367,0.00020014,2]
[393518059,1762750238099,-1062.0,0.00020042,2]
[393518060,1762750238109,-2210.23819725,0.00020043,2]
[393518097,1762750240415,-2789.76180275,0.00020043,2]
[393518098,1762750240426,-300.0,0.00020185,2]
[393518099,1762750240437,-1200.0,0.00020186,2]
[393518100,1762750240448,-490.931051,0.00020187,2]
[393518101,1762750240457,-18218.00270728,0.00020702,2]
[393518102,1762750240468,-1354.54730236,0.00020702,2]
[393518103,1762750240478,-500.0,0.00020803,2]
[393518104,1762750240489,-300.0,0.00020804,2]
[393518105,1762750240499,-300.0,0.00020804,2]
[393518106,1762750240508,-300.0,0.00020804,2]
[393518107,1762750240518,-300.0,0.00020804,2]
[393518108,1762750240528,-300.0,0.00020804,2]
[393518109,1762750240538,-300.0,0.00020804,2]
[393518110,1762750240548,-300.0,0.00020804,2]
[393518111,1762750240557,-300.0,0.00020804,2]
[393518112,1762750240566,-300.0,0.00020804,2]
[393518113,1762750240575,-300.0,0.00020804,2]
[393518114,1762750240585,-300.0,0.00020804,2]
[393518115,1762750240594,-300.0,0.00020804,2]
[393518116,1762750240605,-300.0,0.00020804,2]
[393518117,1762750240615,-300.0,0.00020804,2]
[393518118,1762750240624,-300.0,0.00020804,2]
[393518119,1762750240634,-600.0,0.00020804,2]
[393518120,1762750240644,-269.323,0.00020804,2]
[393518121,1762750240653,-197.34894526,0.0002121,2]
[393518122,1762750240662,-434.9018899,0.00021471,2]
[393518123,1762750240672,-300.0086418,0.00021471,2]
[393518124,1762750240681,-300.0086418,0.00021471,2]
[393518125,1762750240691,-500.0,0.00021821,2]
[393518126,1762750240701,-500.0,0.00021972,2]
[393518127,1762750240712,-11748.9310267,0.00021972,2]
[393518128,1762750240723,-420.0,0.00021975,2]
[393518129,1762750240733,-406.0,0.00021977,2]
[393518130,1762750240743,-1001.0,0.00022,5]
[393518131,1762750240752,-1831.03,0.0002206,10]
[393518132,1762750240763,-1525.86,0.0002206,10]
[393518133,1762750240772,-500.0,0.00022068,2]
[393518134,1762750240782,-176.47350001,0.00022069,2]
[393518135,1762750240793,-226.18240641,0.00022069,2]
[393518136,1762750240803,-500.0,0.00022069,2]
[393518137,1762750240812,-500.0,0.00022069,2]
[393518138,1762750240821,-500.0,0.00022069,2]
[393518139,1762750240831,-500.0,0.00022069,2]
[393518140,1762750240841,-500.0,0.00022069,2]
[393518141,1762750240853,-500.0,0.00022069,2]
[393518142,1762750240863,-500.0,0.00022069,2]
[393518143,1762750240872,-523.19126933,0.00022069,2]
[393518144,1762750240882,-1000.0,0.00022069,2]
[393518145,1762750240892,-1000.0,0.00022069,2]
[393518146,1762750240902,-1000.0,0.00022069,2]
[393518147,1762750240912,-1000.0,0.00022069,2]
[393518148,1762750240922,-1000.0,0.00022069,2]
[393518149,1762750240932,-1000.0,0.00022069,2]
[393518150,1762750240941,-1000.0,0.00022069,2]
[393518151,1762750240951,-1000.0,0.00022069,2]
[393518152,1762750240960,-1000.0,0.00022069,2]
[393518153,1762750240970,-1000.0,0.00022069,2]
[393518154,1762750240979,-1000.0,0.00022069,2]
[393518155,1762750240988,-1000.0,0.00022069,2]
[393518156,1762750240998,-1000.0,0.00022069,2]
[393518157,1762750241007,-1000.0,0.00022069,2]
[393518158,1762750241017,-653.77224923,0.00022069,2]
[393518159,1762750241027,-105059.86921797,0.0002207,2]
[393518167,1762750243346,-543.10497292,0.0002206,10]
[393518168,1762750243404,-300.0,0.0002206,10]
[393518170,1762750243416,-428.44502708,0.0002206,10]
[393518171,1762750243425,-12868.5156879,0.0002207,2]
[393518172,1762750243436,-468.942,0.0002207,2]
[393518181,1762750246411,-2155.61625196,0.0002207,2]
[393518185,1762750246523,-276.5150003,0.0002207,2]
[393518186,1762750458081,201.0479853,0.00037041,120]
[393518188,1762750866220,500.0,0.00037042,60]
[393518189,1762750866441,500.316823,0.00037042,60]
[393518193,1762751217227,18055.17773018,0.00037042,120]
[393518195,1762751265613,407.0,0.00037042,120]
[393518196,1762751357986,151.0,0.00037042,120]
[393518200,1762751427147,8000.0,0.00018,10]
[393518266,1762751432674,-405.86602565,0.00019845,2]
[393518268,1762751432686,-1762.51359405,0.00019845,2]
[393518270,1762751432699,-168.71702008,0.00020169,2]
[393518271,1762751432708,-480.50703067,0.00020506,2]
[393518272,1762751432717,-853.38048647,0.00020506,2]
[393518273,1762751432726,-602.98921496,0.00020561,2]
[393518274,1762751432737,-185.96349254,0.00020692,2]
[393518275,1762751432746,-567.13718594,0.00020773,2]
[393518276,1762751432756,-500.0,0.00020773,2]
[393518278,1762751432765,-500.0,0.00020773,2]
[393518280,1762751432774,-504.67666357,0.00020773,2]
[393518282,1762751432783,-300.0,0.00020791,2]
[393518283,1762751432792,-300.0,0.00020791,2]
[393518284,1762751432801,-300.0,0.00020791,2]
[393518285,1762751432810,-300.0,0.00020791,2]
[393518286,1762751432819,-300.0,0.00020791,2]
[393518287,1762751432828,-1200.0,0.00020791,2]
[393518288,1762751432838,-1200.0,0.00020792,2]
[393518289,1762751432847,-215.458,0.00020796,2]
[393518290,1762751432856,-524.08463484,0.00021,2]
[393518291,1762751432865,-692.286199,0.00021043,2]
[393518292,1762751432874,-300.0,0.00021216,20]
[393518293,1762751432884,-300.0,0.00021216,20]
[393518294,1762751432893,-300.0,0.00021216,20]
[393518295,1762751432902,-300.0,0.00021216,20]
[393518296,1762751432912,-300.0,0.00021216,20]
[393518297,1762751432922,-300.0,0.00021216,20]
[393518298,1762751432931,-300.0,0.00021216,20]
[393518299,1762751432940,-300.0,0.00021216,20]
[393518300,1762751432949,-300.0,0.00021216,20]
[393518301,1762751432958,-300.0,0.00021216,20]
[393518302,1762751432968,-300.0,0.00021216,20]
[393518303,1762751432977,-300.0,0.00021216,20]
[393518304,1762751432987,-300.0,0.00021216,20]
[393518305,1762751432996,-300.0,0.00021216,20]
[393518306,1762751433006,-300.0,0.00021216,20]
[393518307,1762751433016,-600.0,0.00021216,20]
[393518308,1762751433025,-500.0,0.00021321,2]
[393518309,1762751433035,-500.0,0.00021321,2]
[393518310,1762751433147,-556.38923357,0.00021585,2]
[393518311,1762751433157,-989.13641523,0.00021585,2]
[393518312,1762751433167,-1543.98012316,0.00021585,2]
[393518313,1762751433176,-1280.0588903,0.00021643,2]
[393518314,1762751433186,-2000.0,0.000217,2]
[393518315,1762751433196,-297.7747917,0.00021778,2]
[393518316,1762751433206,-594.0550665,0.00021878,2]
[393518317,1762751433215,-1007.10437247,0.000219,2]
[393518318,1762751433228,-590.78466951,0.000219,2]
[393518319,1762751433239,-402.11095802,0.000219,2]
[393518320,1762751433249,-299.60095513,0.00021944,2]
[393518321,1762751438235,-455.18249544,0.00020692,2]
[393518322,1762751438249,-887.91482575,0.00020692,2]
[393518323,1762751438259,-500.0,0.00020791,2]
[393518324,1762751438269,-500.0,0.00020791,2]
[393518325,1762751438280,-284.3087641,0.00020791,2]
[393518326,1762751438292,-215.6912359,0.00020791,2]
[393518327,1762751438302,-500.0,0.00020791,2]
[393518328,1762751438313,-489.55318274,0.00020791,2]
[393518329,1762751438325,-10.44681726,0.00020791,2]
[393518330,1762751438335,-500.0,0.00020791,2]
[393518331,1762751438344,-500.0,0.00020791,2]
[393518332,1762751438354,-500.0,0.00020791,2]
[393518333,1762751438365,-198.86318445,0.00020791,2]
[393518334,1762751438374,-500.0,0.00020791,2]
[393518335,1762751438383,-500.0,0.00020791,2]
[393518336,1762751438393,-579.5485866,0.00020791,2]
[393518337,1762751438403,-500.0,0.00020791,2]
[393518338,1762751438412,-414.40020731,0.00020791,2]
[393518339,1762751438424,-172.31974893,0.00020791,2]
[393518340,1762751438434,-455.31341949,0.00020791,2]
[393518341,1762751438444,-500.0,0.00020791,2]
[393518342,1762751438454,-500.0,0.00020791,2]
[393518343,1762751438463,-500.0,0.00020791,2]
[393518344,1762751438472,-500.0,0.00020791,2]
[393518345,1762751438483,-409.97085328,0.00020791,2]
[393518346,1762751438499,-90.02914672,0.00020791,2]
[393518347,1762751438508,-500.0,0.00020791,2]
[393518348,1762751438518,-500.0,0.00020791,2]
[393518349,1762751438527,-500.0,0.00020791,2]
[393518350,1762751438539,-500.0,0.00020791,2]
[393518351,1762751438548,-500.0,0.00020791,2]
[393518352,1762751438559,-500.0,0.00020791,2]
[393518353,1762751438570,-500.0,0.00020791,2]
[393518354,1762751438579,-500.0,0.00020791,2]
[393518355,1762751438590,-379.24123717,0.00020791,2]
[393518356,1762751438599,-206.4405736,0.00020791,2]
[393518357,1762751438613,-293.5594264,0.00020791,2]
[393518358,1762751438623,-500.0,0.00020791,2]
[393518359,1762751438632,-500.0,0.00020791,2]
[393518360,1762751438643,-500.0,0.00020791,2]
[393518361,1762751438653,-500.0,0.00020791,2]
[393518362,1762751438664,-500.0,0.00020791,2]
[393518363,1762751438674,-500.0,0.00020791,2]
[393518364,1762751438685,-500.0,0.00020791,2]
[393518365,1762751438695,-500.0,0.00020791,2]
[393518366,1762751438705,-317.0202321,0.00020791,2]
[393518367,1762751438715,-500.0,0.00020791,2]
[393518368,1762751438725,-500.0,0.00020791,2]
[393518369,1762751438735,-500.0,0.00020791,2]
[393518370,1762751438744,-500.0,0.00020791,2]
[393518371,1762751438754,-266.66303332,0.00020791,2]
[393518372,1762751438764,-500.0,0.00020791,2]
[393518373,1762751438775,-500.0,0.00020791,2]
[393518374,1762751438784,-500.0,0.00020791,2]
[393518375,1762751438794,-500.0,0.00020791,2]
[393518376,1762751438804,-500.0,0.00020791,2]
[393518377,1762751438815,-500.0,0.00020791,2]
[393518378,1762751438824,-500.0,0.00020791,2]
[393518379,1762751438834,-500.0,0.00020791,2]
[393518380,1762751438844,-500.0,0.00020791,2]
[393518381,1762751438854,-500.0,0.00020791,2]
[393518382,1762751438864,-500.0,0.00020791,2]
[393518383,1762751438875,-500.0,0.00020791,2]
[393518384,1762751438885,-502.25419285,0.00020791,2]
[393518385,1762751438896,-500.0,0.00020791,2]
[393518386,1762751438905,-500.0,0.00020791,2]
[393518387,1762751438914,-500.0,0.00020791,2]
[393518388,1762751438924,-500.0,0.00020791,2]
[393518389,1762751438936,-500.0,0.00020791,2]
[393518390,1762751438947,-500.0,0.00020791,2]
[393518391,1762751438957,-500.0,0.00020791,2]
[393518392,1762751438966,-500.0,0.00020791,2]
[393518393,1762751438976,-500.0,0.00020791,2]
[393518394,1762751438986,-500.0,0.00020791,2]
[393518395,1762751438996,-500.0,0.00020791,2]
[393518396,1762751439006,-306.08645188,0.00020791,2]
[393518397,1762751439017,-500.0,0.00020791,2]
[393518398,1762751439027,-500.0,0.00020791,2]
[393518399,1762751439038,-500.0,0.00020791,2]
[393518400,1762751439048,-500.0,0.00020791,2]
[393518401,1762751439061,-9688.75984691,0.00021944,2]
[393518402,1762751439072,-151.94321555,0.00021958,2]
[393518403,1762751439089,-73.05678445,0.00021958,2]
[393518404,1762751439100,-647.57039958,0.0002196,10]
[393518405,1762751439112,-412.05960042,0.0002196,10]
[393518406,1762751439122,-704.39299222,0.0002196,10]
[393518407,1762751439134,-178.62700778,0.0002196,10]
[393518408,1762751439144,-502.20086835,0.0002196,10]
[393518409,1762751439156,-233.64913165,0.0002196,10]
[393518410,1762751439165,-158.32768448,0.00021969,2]
[393518411,1762751439174,-33.81075446,0.0002197,2]
[393518412,1762751439192,-15289.00501649,0.0002197,2]
[393518413,1762751439204,-593.12454368,0.0002197,2]
[393518414,1762751439217,-2322.27181308,0.0002197,2]
[393518415,1762751439227,-1018.95959998,0.0002197,2]
[393518425,1762751440515,-613.21,0.0002196,10]
[393518426,1762751440526,-69569.60319116,0.0002197,2]
[393518430,1762751443506,-2253.92377803,0.0002197,2]
[393518431,1762751443612,-272.83182917,0.0002197,2]
[393518432,1762751443668,-1979.9,0.0002197,2]
[393518436,1762751446751,-5315.0,0.0002197,2]
[393518437,1762751446807,-1411.95357189,0.0002197,2]
[393518438,1762751447082,-1828.9342412,0.0002197,2]
[393518439,1762751447094,-4816.87488483,0.0002197,2]
[393518442,1762751980591,5000.0,0.0001962,3]
[393518446,1762752445316,469.940693,0.00013699,2]
[393518447,1762752464443,1704.70771946,0.00018,2]
[393518449,1762752497117,2121.14710012,0.000176,2]
[393518451,1762752509519,2894.49837078,0.00015,2]
[393518452,1762752512303,6797.10764485,0.00018,2]
[393518455,1762752523052,172.79131131,0.00032876,120]
[393518460,1762752578604,2000.0,0.00018,2]
[393518499,1762752632494,-941.0,0.00019359,2]
[393518501,1762752632504,-174.18762757,0.00019407,2]
[393518503,1762752632516,-1313.3450337,0.000199,2]
[393518505,1762752632525,-300.0,0.00019999,2]
[393518507,1762752632534,-716.20945068,0.00019999,2]
[393518509,1762752632545,-483.79054932,0.00019999,2]
[393518511,1762752632554,-7140.92275272,0.0002,2]
[393518513,1762752632563,-368.98312316,0.0002,2]
[393518514,1762752632573,-23000.0,0.0002,2]
[393518515,1762752632582,-201.21752405,0.0002,2]
[393518516,1762752632594,-4083.18997898,0.0002,2]
[393518517,1762752632603,-300.0,0.00020046,2]
[393518518,1762752632613,-300.0,0.00020046,2]
[393518520,1762752632622,-300.0,0.00020046,2]
[393518522,1762752632631,-300.0,0.00020046,2]
[393518523,1762752632641,-300.0,0.00020046,2]
[393518526,1762752632651,-300.0,0.00020046,2]
[393518527,1762752632659,-300.0,0.00020046,2]
[393518530,1762752632669,-300.0,0.00020046,2]
[393518531,1762752632679,-300.0,0.00020046,2]
[393518535,1762752632689,-300.0,0.00020046,2]
[393518538,1762752632698,-300.0,0.00020046,2]
[393518539,1762752632708,-300.0,0.00020046,2]
[393518542,1762752632717,-300.0,0.00020046,2]
[393518545,1762752632726,-300.0,0.00020046,2]
[393518547,1762752632736,-300.0,0.00020046,2]
[393518551,1762752632745,-469.940693,0.00020187,2]
[393518553,1762752632755,-600.0,0.00020446,2]
[393518555,1762752632764,-319.48701803,0.00020506,2]
[393518559,1762752632774,-320.43970277,0.00020506,2]
[393518560,1762752632784,-3325.882607,0.00020591,2]
[393518562,1762752632793,-1379.19522512,0.0002061,2]
[393518564,1762752632802,-534.33739375,0.00020673,2]
[393518566,1762752632812,-500.0,0.00020673,2]
[393518569,1762752632822,-500.0,0.00020673,2]
[393518571,1762752632831,-469.21894638,0.00020673,2]
[393518572,1762752632841,-582.26884545,0.00020673,2]
[393518574,1762752632851,-524.70181633,0.00020673,2]
[393518576,1762752632860,-500.0,0.00020673,2]
[393518578,1762752632870,-759.14,0.0002068,10]
[393518580,1762752632879,-632.62,0.0002068,10]
[393518582,1762752632888,-527.18,0.0002068,10]
[393518584,1762752632897,-439.32,0.0002068,10]
[393518586,1762752632907,-500.0,0.00020685,2]
[393518588,1762752632916,-500.0,0.00020685,2]
[393518590,1762752632926,-500.0,0.00020685,2]
[393518592,1762752632940,-500.0,0.00020685,2]
[393518594,1762752632949,-500.0,0.00020685,2]
[393518596,1762752632957,-500.0,0.00020685,2]
[393518598,1762752632968,-500.0,0.00020685,2]
[393518600,1762752632981,-500.0,0.00020685,2]
[393518602,1762752632990,-500.0,0.00020685,2]
[393518604,1762752632999,-312.95202299,0.00020685,2]
[393518606,1762752633009,-500.0,0.00020685,2]
[393518608,1762752633019,-369.49263001,0.00020685,2]
[393518610,1762752633028,-500.0,0.00020685,2]
[393518612,1762752633038,-501.67125279,0.00020685,2]
[393518614,1762752633047,-500.0,0.00020685,2]
[393518626,1762752633057,-500.0,0.00020685,2]
[393518628,1762752633169,-500.0,0.00020685,2]
[393518630,1762752633179,-500.0,0.00020685,2]
[393518632,1762752633188,-500.0,0.00020685,2]
[393518634,1762752633198,-500.0,0.00020685,2]
[393518637,1762752633208,-500.0,0.00020685,2]
[393518639,1762752633218,-500.0,0.00020685,2]
[393518641,1762752633228,-500.0,0.00020685,2]
[393518643,1762752633237,-188.08934181,0.00020685,2]
[393518644,1762752633247,-548.16263722,0.00020685,2]
[393518647,1762752633259,-500.0,0.00020685,2]
[393518649,1762752633268,-500.0,0.00020685,2]
[393518651,1762752633278,-500.0,0.00020685,2]
[393518653,1762752633287,-500.0,0.00020685,2]
[393518655,1762752633296,-500.0,0.00020685,2]
[393518656,1762752633305,-500.0,0.00020685,2]
[393518658,1762752633314,-500.0,0.00020685,2]
[393518660,1762752633324,-500.0,0.00020685,2]
[393518663,1762752633334,-500.0,0.00020685,2]
[393518664,1762752633343,-500.0,0.00020685,2]
[393518666,1762752633352,-500.0,0.00020685,2]
[393518668,1762752633362,-500.0,0.00020685,2]
[393518670,1762752633371,-500.0,0.00020685,2]
[393518672,1762752633380,-500.0,0.00020685,2]
[393518674,1762752633389,-500.0,0.00020685,2]
[393518676,1762752633399,-500.0,0.00020685,2]
[393518678,1762752633409,-500.0,0.00020685,2]
[393518680,1762752633422,-500.0,0.00020685,2]
[393518682,1762752633431,-500.0,0.00020685,2]
[393518684,1762752633441,-500.0,0.00020685,2]
[393518686,1762752633451,-500.0,0.00020685,2]
[393518688,1762752633462,-500.0,0.00020685,2]
[393518690,1762752633472,-500.0,0.00020685,2]
[393518692,1762752633482,-346.24123372,0.00020685,2]
[393518694,1762752633495,-500.0,0.00020685,2]
[393518696,1762752633504,-500.0,0.00020685,2]
[393518698,1762752633513,-500.0,0.00020685,2]
[393518700,1762752633522,-500.0,0.00020685,2]
[393518702,1762752633532,-500.0,0.00020685,2]
[393518704,1762752633540,-500.0,0.00020685,2]
[393518706,1762752633550,-500.0,0.00020685,2]
[393518707,1762752633559,-500.0,0.00020685,2]
[393518708,1762752633568,-500.0,0.00020685,2]
[393518709,1762752633578,-500.0,0.00020685,2]
[393518710,1762752633588,-500.0,0.00020685,2]
[393518711,1762752633599,-230.60864518,0.00020685,2]
[393518712,1762752633609,-500.0,0.00020685,2]
[393518713,1762752633619,-500.0,0.00020685,2]
[393518714,1762752633629,-500.0,0.00020685,2]
[393518715,1762752633639,-500.0,0.00020685,2]
[393518716,1762752633648,-500.0,0.00020685,2]
[393518717,1762752633658,-500.0,0.00020685,2]
[393518718,1762752633668,-500.0,0.00020685,2]
[393518719,1762752633678,-500.0,0.00020685,2]
[393518720,1762752633688,-500.0,0.00020685,2]
[393518721,1762752633699,-500.0,0.00020685,2]
[393518722,1762752633709,-500.0,0.00020685,2]
[393518724,1762752633718,-500.0,0.00020685,2]
[393518725,1762752633728,-459.73983135,0.00020685,2]
[393518727,1762752633737,-500.0,0.00020685,2]
[393518729,1762752633746,-500.0,0.00020685,2]
[393518731,1762752633756,-500.0,0.00020685,2]
[393518733,1762752633765,-500.0,0.00020685,2]
[393518735,1762752633775,-172.367,0.00020689,2]
[393518737,1762752633785,-52565.95345218,0.0002069,2]
[393518739,1762752633797,-334.73892341,0.0002069,2]
[393518741,1762752633809,-1114.72696981,0.0002069,2]
[393518743,1762752633820,-26970.73582437,0.0002069,2]
[393518746,1762752633835,-314.5842607,0.0002069,2]
[393518748,1762752633848,-8614.14654064,0.0002069,2]
[393518750,1762752633859,-16451.52256059,0.0002069,2]
[393518753,1762752633870,-77367.08296883,0.0002069,2]
[393518755,1762752633881,-956.23404994,0.0002069,2]
[393518931,1762752638450,-1488.82,0.0002069,2]
[393518932,1762752638469,-3479.6098573,0.0002069,2]
[393518933,1762752638486,-1896.94150928,0.0002069,2]
[393518934,1762752638508,-3266.15425307,0.0002069,2]
[393518958,1762752643758,-366.1,0.0002068,10]
[393518959,1762752643772,-34608.67233879,0.0002069,2]